fUST/lending_fUST_20250208
["ID","MTS","AMOUNT","RATE_DAILY","PERIOD"]
[352181440,1738979441790,-530.41,0.00010958,2]
[352181441,1738979441800,-500.0,0.00010958,2]
[352181442,1738979441809,-500.0,0.00010958,2]
[352181443,1738979441819,-500.51513547,0.00010958,2]
[352181444,1738979441828,-501.15923238,0.00010958,2]
[352181445,1738979441837,-500.0,0.00010958,2]
[352181446,1738979441846,-500.0,0.00010958,2]
[352181447,1738979441855,-500.0,0.00010958,2]
[352181448,1738979441864,-500.0,0.00010958,2]
[352181449,1738979441874,-259.51906623,0.00010958,2]
[352181450,1738979441883,-501.71226598,0.00010958,2]
[352181451,1738979441892,-1264.89,0.00010958,2]
[352181452,1738979441901,-1008.48,0.00010958,2]
[352181453,1738979441910,-500.0,0.00010958,2]
[352181454,1738979441919,-500.0,0.00010958,2]
[352181455,1738979441931,-500.0,0.00010958,2]
[352181456,1738979441944,-500.0,0.00010958,2]
[352181457,1738979441953,-500.0,0.00010958,2]
[352181458,1738979441962,-500.0,0.00010958,2]
[352181459,1738979441972,-500.0,0.00010958,2]
[352181460,1738979441982,-500.0,0.00010958,2]
[352181461,1738979441992,-500.0,0.00010958,2]
[352181462,1738979442002,-789.33,0.00010958,2]
[352181463,1738979442011,-500.0,0.00010958,2]
[352181464,1738979442023,-312.40296877,0.00010958,2]
[352181465,1738979442032,-500.56659313,0.00010958,2]
[352181466,1738979442042,-500.0,0.00010958,2]
[352181467,1738979442051,-844.48,0.00010958,2]
[352181468,1738979442061,-500.0,0.00010958,2]
[352181469,1738979442070,-554.79330933,0.00010958,2]
[352181470,1738979442080,-500.0,0.00010958,2]
[352181471,1738979442089,-500.28283846,0.00010958,2]
[352181472,1738979442097,-501.06338174,0.00010958,2]
[352181473,1738979442106,-500.0,0.00010958,2]
[352181474,1738979442116,-500.0,0.00010958,2]
[352181475,1738979442125,-500.0,0.00010958,2]
[352181476,1738979442134,-3477.33,0.00010958,2]
[352181477,1738979442143,-501.04806849,0.00010958,2]
[352181478,1738979442152,-500.0,0.00010958,2]
[352181479,1738979442162,-500.0,0.00010958,2]
[352181480,1738979442171,-500.0,0.00010958,2]
[352181481,1738979442182,-500.0,0.00010958,2]
[352181482,1738979442191,-500.0,0.00010958,2]
[352181483,1738979442200,-500.0,0.00010958,2]
[352181484,1738979442210,-500.0,0.00010958,2]
[352181485,1738979442219,-500.0,0.00010958,2]
[352181486,1738979442229,-500.0,0.00010958,2]
[352181487,1738979442238,-521.96,0.00010958,2]
[352181488,1738979442247,-500.0,0.00010958,2]
[352181489,1738979442256,-500.60980057,0.00010958,2]
[352181490,1738979442265,-500.0,0.00010958,2]
[352181491,1738979442275,-1149.0,0.00010958,2]
[352181492,1738979442284,-500.77629688,0.00010958,2]
[352181493,1738979442294,-500.0,0.00010958,2]
[352181494,1738979442303,-505.59779539,0.00010958,2]
[352181495,1738979442313,-500.63750474,0.00010958,2]
[352181496,1738979442322,-500.0,0.00010958,2]
[352181497,1738979442331,-500.0,0.00010958,2]
[352181498,1738979442340,-500.70733951,0.00010958,2]
[352181499,1738979442349,-500.0,0.00010958,2]
[352181500,1738979442358,-500.0,0.00010958,2]
[352181501,1738979442368,-500.0,0.00010958,2]
[352181502,1738979442377,-504.14636842,0.00010958,2]
[352181503,1738979442387,-500.0,0.00010958,2]
[352181504,1738979442396,-500.0,0.00010958,2]
[352181505,1738979442405,-336.50399263,0.00010958,2]
[352181506,1738979442414,-33591.09,0.00010958,2]
[352181507,1738979442424,-500.0,0.00010958,2]
[352181508,1738979442435,-500.78307202,0.00010958,2]
[352181509,1738979442445,-500.0,0.00010958,2]
[352181510,1738979442455,-500.0,0.00010958,2]
[352181511,1738979442465,-500.0,0.00010958,2]
[352181512,1738979442474,-500.34010031,0.00010958,2]
[352181513,1738979442484,-500.83437261,0.00010958,2]
[352181514,1738979442493,-500.0,0.00010958,2]
[352181515,1738979442503,-500.0,0.00010958,2]
[352181516,1738979442512,-2738.07,0.00010958,2]
[352181517,1738979442522,-500.0,0.00010958,2]
[352181518,1738979442531,-500.0,0.00010958,2]
[352181519,1738979442541,-500.0,0.00010958,2]
[352181520,1738979442551,-500.0,0.00010958,2]
[352181521,1738979442561,-500.0,0.00010958,2]
[352181522,1738979442570,-500.59424151,0.00010958,2]
[352181523,1738979442579,-501.33522087,0.00010958,2]
[352181524,1738979442589,-500.65593778,0.00010958,2]
[352181525,1738979442598,-500.0,0.00010958,2]
[352181526,1738979442607,-500.0,0.00010958,2]
[352181527,1738979442617,-500.0,0.00010958,2]
[352181528,1738979442627,-500.0,0.00010958,2]
[352181529,1738979442636,-500.0,0.00010958,2]
[352181530,1738979442645,-500.0,0.00010958,2]
[352181531,1738979442654,-500.0,0.00010958,2]
[352181532,1738979442664,-500.0,0.00010958,2]
[352181533,1738979442674,-500.0,0.00010958,2]
[352181534,1738979442684,-1274.52,0.00010958,2]
[352181535,1738979442694,-500.0,0.00010958,2]
[352181536,1738979442703,-500.0,0.00010958,2]
[352181537,1738979442713,-500.0,0.00010958,2]
[352181538,1738979442723,-500.0,0.00010958,2]
[352181539,1738979442732,-500.0,0.00010958,2]
[352181540,1738979442742,-500.0,0.00010958,2]
[352181541,1738979442751,-502.61935459,0.00010958,2]
[352181542,1738979442760,-1346.66,0.00010958,2]
[352181543,1738979442770,-500.0,0.00010958,2]
[352181544,1738979442779,-500.0,0.00010958,2]
[352181545,1738979442789,-500.0,0.00010958,2]
[352181546,1738979442798,-500.0,0.00010958,2]
[352181547,1738979442808,-500.0,0.00010958,2]
[352181548,1738979442817,-500.0,0.00010958,2]
[352181549,1738979442827,-500.0,0.00010958,2]
[352181550,1738979442836,-500.0,0.00010958,2]
[352181552,1738979442846,-500.0,0.00010958,2]
[352181554,1738979442855,-500.0,0.00010958,2]
[352181555,1738979442865,-500.0,0.00010958,2]
[352181563,1738979442875,-500.0,0.00010958,2]
[352181564,1738979443019,-500.0,0.00010958,2]
[352181565,1738979443029,-417.56579374,0.00010958,2]
[352181566,1738979443040,-500.0,0.00010958,2]
[352181567,1738979443050,-500.0,0.00010958,2]
[352181568,1738979443060,-746.29,0.00010958,2]
[352181569,1738979443071,-500.0,0.00010958,2]
[352181570,1738979443081,-256.23706644,0.00010958,2]
[352181571,1738979443090,-500.0,0.00010958,2]
[352181572,1738979443100,-1325.41,0.00010958,2]
[352181573,1738979443109,-10300.93,0.00010958,2]
[352181574,1738979443119,-10300.93,0.00010958,2]
[352181575,1738979443127,-10300.93,0.00010958,2]
[352181576,1738979443136,-503.58949611,0.00010958,2]
[352181577,1738979443146,-10300.93,0.00010958,2]
[352181578,1738979443155,-10300.93,0.00010958,2]
[352181579,1738979443165,-10300.93,0.00010958,2]
[352181580,1738979443174,-10300.93,0.00010958,2]
[352181581,1738979443184,-10300.93,0.00010958,2]
[352181582,1738979443193,-10300.93,0.00010958,2]
[352181583,1738979443202,-11361.05,0.00010958,2]
[352181584,1738979443212,-10300.93,0.00010958,2]
[352181585,1738979443221,-10300.93,0.00010958,2]
[352181586,1738979443230,-10300.93,0.00010958,2]
[352181587,1738979443240,-10300.93,0.00010958,2]
[352181588,1738979443249,-10300.93,0.00010958,2]
[352181589,1738979443259,-10300.93,0.00010958,2]
[352181590,1738979443268,-10300.93,0.00010958,2]
[352181591,1738979443277,-10300.93,0.00010958,2]
[352181592,1738979443287,-500.0,0.00010958,2]
[352181593,1738979443296,-10300.93,0.00010958,2]
[352181594,1738979443305,-504.07096815,0.00010958,2]
[352181595,1738979443315,-10300.93,0.00010958,2]
[352181596,1738979443324,-500.0,0.00010958,2]
[352181597,1738979443333,-10300.93,0.00010958,2]
[352181598,1738979443342,-503.72750539,0.00010958,2]
[352181599,1738979443351,-10300.93,0.00010958,2]
[352181600,1738979443360,-500.0,0.00010958,2]
[352181601,1738979443370,-10300.93,0.00010958,2]
[352181602,1738979443379,-500.0,0.00010958,2]
[352181603,1738979443388,-10300.93,0.00010958,2]
[352181604,1738979443398,-10301.00850851,0.00010958,2]
[352181605,1738979443407,-500.0,0.00010958,2]
[352181606,1738979443416,-501.13647087,0.00010958,2]
[352181607,1738979443426,-500.0,0.00010958,2]
[352181608,1738979443436,-500.0,0.00010958,2]
[352181609,1738979443446,-500.0,0.00010958,2]
[352181610,1738979443455,-500.0,0.00010958,2]
[352181611,1738979443464,-500.0,0.00010958,2]
[352181612,1738979443474,-500.0,0.00010958,2]
[352181613,1738979443483,-1269.56,0.00010958,2]
[352181614,1738979443492,-500.0,0.00010958,2]
[352181615,1738979443501,-527.728935,0.00010958,2]
[352181616,1738979443511,-188.07295817,0.00010958,2]
[352181617,1738979443520,-500.0,0.00010958,2]
[352181618,1738979443529,-500.0,0.00010958,2]
[352181619,1738979443538,-500.0,0.00010958,2]
[352181620,1738979443547,-500.0,0.00010958,2]
[352181621,1738979443557,-500.61542001,0.00010958,2]
[352181622,1738979443566,-500.0,0.00010958,2]
[352181623,1738979443576,-739.46,0.00010958,2]
[352181624,1738979443586,-500.0,0.00010958,2]
[352181625,1738979443595,-500.0,0.00010958,2]
[352181626,1738979443604,-500.0,0.00010958,2]
[352181627,1738979443614,-500.0,0.00010958,2]
[352181628,1738979443623,-500.0,0.00010958,2]
[352181629,1738979443632,-1729.3,0.00010958,2]
[352181630,1738979443641,-525.49420238,0.00010958,2]
[352181631,1738979443650,-500.76386566,0.00010958,2]
[352181632,1738979443661,-796.89,0.00010958,2]
[352181633,1738979443671,-502.3409765,0.00010958,2]
[352181634,1738979443681,-500.0,0.00010958,2]
[352181635,1738979443690,-500.0,0.00010958,2]
[352181636,1738979443699,-500.0,0.00010958,2]
[352181637,1738979443708,-500.0,0.00010958,2]
[352181638,1738979443717,-500.0,0.00010958,2]
[352181639,1738979443726,-500.0,0.00010958,2]
[352181640,1738979443736,-500.0,0.00010958,2]
[352181641,1738979443745,-500.98244539,0.00010958,2]
[352181642,1738979443754,-502.59451048,0.00010958,2]
[352181643,1738979443764,-500.0,0.00010958,2]
[352181644,1738979443773,-500.0,0.00010958,2]
[352181645,1738979443782,-1112.48,0.00010958,2]
[352181646,1738979443791,-651.14,0.00010958,2]
[352181647,1738979443801,-500.0,0.00010958,2]
[352181648,1738979443810,-500.0,0.00010958,2]
[352181649,1738979443820,-500.44817639,0.00010958,2]
[352181650,1738979443829,-500.0,0.00010958,2]
[352181651,1738979443839,-500.0,0.00010958,2]
[352181652,1738979443849,-500.0,0.00010958,2]
[352181653,1738979443858,-500.0,0.00010958,2]
[352181654,1738979443868,-501.27189884,0.00010958,2]
[352181655,1738979443877,-500.0,0.00010958,2]
[352181656,1738979443886,-500.0,0.00010958,2]
[352181657,1738979443895,-500.0,0.00010958,2]
[352181658,1738979443905,-500.73596708,0.00010958,2]
[352181659,1738979443914,-500.0,0.00010958,2]
[352181660,1738979443923,-500.0,0.00010958,2]
[352181661,1738979443932,-500.0,0.00010958,2]
[352181662,1738979443943,-500.0,0.00010958,2]
[352181663,1738979443957,-500.0,0.00010958,2]
[352181664,1738979443966,-500.0,0.00010958,2]
[352181665,1738979443976,-500.0,0.00010958,2]
[352181666,1738979443987,-502.31845736,0.00010958,2]
[352181667,1738979443996,-501.57253943,0.00010958,2]
[352181668,1738979444005,-2236.21,0.00010958,2]
[352181669,1738979444014,-500.0,0.00010958,2]
[352181670,1738979444026,-500.0,0.00010958,2]
[352181671,1738979444035,-500.0,0.00010958,2]
[352181672,1738979444044,-500.0,0.00010958,2]
[352181673,1738979444054,-500.0,0.00010958,2]
[352181674,1738979444063,-500.59712672,0.00010958,2]
[352181675,1738979444072,-500.0,0.00010958,2]
[352181676,1738979444081,-500.0,0.00010958,2]
[352181677,1738979444091,-500.0,0.00010958,2]
[352181678,1738979444100,-1362.48,0.00010958,2]
[352181679,1738979444109,-500.0,0.00010958,2]
[352181680,1738979444119,-2180.49,0.00010958,2]
[352181681,1738979444128,-4270.89,0.00010958,2]
[352181682,1738979444137,-500.0,0.00010958,2]
[352181683,1738979444146,-500.0,0.00010958,2]
[352181684,1738979444155,-502.06780739,0.00010958,2]
[352181685,1738979444165,-540.01,0.00010958,2]
[352181686,1738979444174,-500.0,0.00010958,2]
[352181687,1738979444184,-500.0,0.00010958,2]
[352181688,1738979444193,-501.2561079,0.00010958,2]
[352181689,1738979444202,-500.0,0.00010958,2]
[352181690,1738979444212,-500.0,0.00010958,2]
[352181691,1738979444221,-500.93684788,0.00010958,2]
[352181692,1738979444231,-1068.9,0.00010958,2]
[352181693,1738979444240,-987.54,0.00010958,2]
[352181694,1738979444250,-500.0,0.00010958,2]
[352181695,1738979444259,-952.52,0.00010958,2]
[352181696,1738979444268,-500.0,0.00010958,2]
[352181697,1738979444277,-500.0,0.00010958,2]
[352181698,1738979444287,-2463.44,0.00010958,2]
[352181699,1738979444296,-501.17547327,0.00010958,2]
[352181700,1738979444305,-500.0,0.00010958,2]
[352181701,1738979444315,-500.0,0.00010958,2]
[352181702,1738979444324,-500.0,0.00010958,2]
[352181703,1738979444333,-500.0,0.00010958,2]
[352181704,1738979444343,-500.0,0.00010958,2]
[352181705,1738979444352,-500.0,0.00010958,2]
[352181706,1738979444361,-500.0,0.00010958,2]
[352181707,1738979444371,-637.85,0.00010958,2]
[352181708,1738979444380,-500.0,0.00010958,2]
[352181709,1738979444389,-500.0,0.00010958,2]
[352181710,1738979444399,-500.0,0.00010958,2]
[352181711,1738979444408,-500.0,0.00010958,2]
[352181712,1738979444417,-500.0,0.00010958,2]
[352181713,1738979444427,-500.0,0.00010958,2]
[352181714,1738979444436,-3069.74,0.00010958,2]
[352181715,1738979444446,-543.16,0.00010958,2]
[352181716,1738979444456,-500.0,0.00010958,2]
[352181717,1738979444465,-500.0,0.00010958,2]
[352181718,1738979444474,-917.91,0.00010958,2]
[352181719,1738979444483,-500.0,0.00010958,2]
[352181720,1738979444492,-503.05729838,0.00010958,2]
[352181721,1738979444501,-501.87586055,0.00010958,2]
[352181722,1738979444509,-566.42,0.00010958,2]
[352181723,1738979444518,-825.57,0.00010958,2]
[352181724,1738979444527,-500.0,0.00010958,2]
[352181725,1738979444537,-500.0,0.00010958,2]
[352181726,1738979444546,-500.0,0.00010958,2]
[352181727,1738979444556,-500.0,0.00010958,2]
[352181728,1738979444565,-500.77401632,0.00010958,2]
[352181729,1738979444574,-500.0,0.00010958,2]
[352181730,1738979444583,-500.0,0.00010958,2]
[352181731,1738979444592,-500.0,0.00010958,2]
[352181732,1738979444601,-500.67048316,0.00010958,2]
[352181733,1738979444610,-1160.37,0.00010958,2]
[352181734,1738979444619,-500.87399058,0.00010958,2]
[352181735,1738979444628,-500.0,0.00010958,2]
[352181736,1738979444638,-500.0,0.00010958,2]
[352181737,1738979444647,-500.0,0.00010958,2]
[352181738,1738979444656,-501.07879346,0.00010958,2]
[352181739,1738979444666,-389.21503979,0.00010958,2]
[352181740,1738979444683,-500.0,0.00010958,2]
[352181741,1738979444692,-500.0,0.00010958,2]
[352181742,1738979444701,-500.0,0.00010958,2]
[352181743,1738979444711,-500.0,0.00010958,2]
[352181744,1738979444720,-501.49686262,0.00010958,2]
[352181745,1738979444729,-500.0,0.00010958,2]
[352181746,1738979444739,-500.0,0.00010958,2]
[352181747,1738979444748,-500.0,0.00010958,2]
[352181748,1738979444757,-501.64481347,0.00010958,2]
[352181749,1738979444766,-500.0,0.00010958,2]
[352181750,1738979444775,-500.0,0.00010958,2]
[352181751,1738979444785,-580.47,0.00010958,2]
[352181752,1738979444794,-573.64,0.00010958,2]
[352181753,1738979444803,-500.0,0.00010958,2]
[352181754,1738979444813,-500.40023323,0.00010973,2]
[352181755,1738979444822,-500.1649634,0.00010973,2]
[352181756,1738979444831,-500.72633651,0.00010973,2]
[352181757,1738979444841,-500.0,0.00010973,2]
[352181758,1738979444859,-500.0,0.00010973,2]
[352181759,1738979444869,-500.80939417,0.00010973,2]
[352181760,1738979444883,-473.0722402,0.00010973,2]
[352181761,1738979444898,-500.0628284,0.00010973,2]
[352181762,1738979444907,-501.62037964,0.00010973,2]
[352181763,1738979444917,-501.01859904,0.00010973,2]
[352181764,1738979444926,-500.0,0.00010973,2]
[352181765,1738979444936,-532.56805237,0.00010973,2]
[352181766,1738979444948,-500.9013982,0.00010973,2]
[352181767,1738979444958,-184.39881509,0.00010995,2]
[352181768,1738979444967,-500.0,0.00011095,2]
[352181769,1738979444976,-501.81853841,0.00011095,2]
[352181770,1738979444987,-504.00442031,0.00011095,2]
[352181771,1738979444996,-502.41501435,0.00011095,2]
[352181772,1738979445006,-502.40270643,0.00011095,2]
[352181773,1738979445017,-521.57153988,0.00011095,2]
[352181774,1738979445026,-296.44332737,0.00011095,2]
[352181775,1738979445036,-502.69411031,0.00011095,2]
[352181776,1738979445045,-501.95742293,0.00011095,2]
[352181777,1738979445055,-501.16015369,0.00011095,2]
[352181778,1738979445064,-501.09197207,0.00011095,2]
[352181779,1738979445073,-505.95350061,0.00011095,2]
[352181780,1738979445083,-506.01293089,0.00011095,2]
[352181781,1738979445092,-500.0,0.00011095,2]
[352181782,1738979445103,-501.37782716,0.00011095,2]
[352181783,1738979445112,-501.30387283,0.00011095,2]
[352181784,1738979445122,-502.64187327,0.00011095,2]
[352181785,1738979445131,-503.32907393,0.00011095,2]
[352181786,1738979445140,-505.56252493,0.00011095,2]
[352181787,1738979445150,-404.92861108,0.00011095,2]
[352181788,1738979445159,-503.25355176,0.00011095,2]
[352181789,1738979445169,-500.0,0.00011095,2]
[352181790,1738979445178,-504.79547488,0.00011095,2]
[352181791,1738979445189,-503.70996672,0.00011095,2]
[352181792,1738979445199,-505.75710205,0.00011095,2]
[352181793,1738979445208,-503.20686269,0.00011095,2]
[352181794,1738979445218,-500.0,0.00011095,2]
[352181795,1738979445227,-500.0,0.00011095,2]
[352181796,1738979445237,-500.0,0.00011095,2]
[352181797,1738979445247,-500.0,0.00011095,2]
[352181798,1738979445256,-551.38985009,0.00011095,2]
[352181799,1738979445271,-500.0,0.00011095,2]
[352181800,1738979445280,-504.44187836,0.00011095,2]
[352181801,1738979445289,-500.0,0.00011095,2]
[352181802,1738979445299,-504.25035906,0.00011095,2]
[352181803,1738979445308,-502.71538925,0.00011095,2]
[352181804,1738979445317,-502.59886123,0.00011095,2]
[352181805,1738979445327,-505.86519878,0.00011095,2]
[352181806,1738979445336,-505.77257623,0.00011095,2]
[352181807,1738979445345,-502.10475968,0.00011095,2]
[352181808,1738979445354,-500.0,0.00011095,2]
[352181809,1738979445363,-500.0,0.00011095,2]
[352181810,1738979445373,-500.0,0.00011095,2]
[352181811,1738979445416,-500.0,0.00011095,2]
[352181812,1738979445426,-293.5474661,0.00011095,2]
[352181813,1738979445435,-625.36247002,0.00011095,2]
[352181814,1738979445444,-500.0,0.00011095,2]
[352181815,1738979445453,-500.0,0.00011095,2]
[352181816,1738979445463,-506.04638713,0.00011095,2]
[352181817,1738979445472,-504.15519562,0.00011095,2]
[352181818,1738979445481,-512.02138416,0.00011095,2]
[352181819,1738979445490,-501.9727286,0.00011095,2]
[352181820,1738979445500,-503.18202209,0.00011095,2]
[352181821,1738979445509,-583.38473543,0.00011095,2]
[352181822,1738979445518,-500.0,0.00011095,2]
[352181823,1738979445527,-500.0,0.00011095,2]
[352181824,1738979445537,-500.0,0.00011095,2]
[352181825,1738979445546,-500.0,0.00011095,2]
[352181826,1738979445555,-500.0,0.00011095,2]
[352181827,1738979445565,-502.36711601,0.00011095,2]
[352181828,1738979445574,-657.07,0.00011095,2]
[352181829,1738979445583,-500.0,0.00011095,2]
[352181830,1738979445593,-500.0,0.00011095,2]
[352181831,1738979445602,-500.0,0.00011095,2]
[352181832,1738979445611,-500.0,0.00011095,2]
[352181833,1738979445620,-601.15,0.00011095,2]
[352181834,1738979445630,-500.0,0.00011095,2]
[352181835,1738979445639,-829.19,0.00011095,2]
[352181836,1738979445648,-504.81905896,0.00011095,2]
[352181837,1738979445657,-501.85722351,0.00011095,2]
[352181838,1738979445667,-504.17908507,0.00011095,2]
[352181839,1738979445676,-500.0,0.00011095,2]
[352181840,1738979445686,-530.17,0.00011095,2]
[352181841,1738979445696,-500.0,0.00011095,2]
[352181842,1738979445705,-500.0,0.00011095,2]
[352181843,1738979445714,-206.93847644,0.00011095,2]
[352181844,1738979445724,-503.8633671,0.00011095,2]
[352181845,1738979445733,-500.0,0.00011095,2]
[352181846,1738979445743,-501.38314752,0.00011095,2]
[352181847,1738979445752,-500.0,0.00011095,2]
[352181848,1738979445761,-501.62233902,0.00011095,2]
[352181849,1738979445770,-226.05741988,0.00011095,2]
[352181850,1738979445780,-500.0,0.00011095,2]
[352181851,1738979445789,-500.0,0.00011095,2]
[352181852,1738979445799,-500.0,0.00011095,2]
[352181853,1738979445808,-500.0,0.00011095,2]
[352181854,1738979445817,-1053.48,0.00011095,2]
[352181855,1738979445826,-500.0,0.00011095,2]
[352181856,1738979445836,-500.0,0.00011095,2]
[352181858,1738979445845,-503.26640573,0.00011095,2]
[352181859,1738979445854,-500.0,0.00011095,2]
[352181860,1738979445864,-500.0,0.00011095,2]
[352181861,1738979445873,-502.69845033,0.00011095,2]
[352181862,1738979445883,-1033.63,0.00011095,2]
[352181863,1738979445892,-500.0,0.00011095,2]
[352181864,1738979445901,-795.31,0.00011095,2]
[352181865,1738979445911,-287.05826935,0.00011095,2]
[352181867,1738979445920,-500.0,0.00011095,2]
[352181868,1738979445929,-500.0,0.00011095,2]
[352181869,1738979445939,-500.0,0.00011095,2]
[352181870,1738979445951,-500.0,0.00011095,2]
[352181871,1738979445960,-500.0,0.00011095,2]
[352181872,1738979445969,-503.62342582,0.00011095,2]
[352181873,1738979445978,-500.0,0.00011095,2]
[352181874,1738979445987,-384.98105427,0.00011095,2]
[352181875,1738979445996,-500.0,0.00011095,2]
[352181876,1738979446005,-200.9217892,0.00011095,2]
[352181877,1738979446015,-500.0,0.00011095,2]
[352181878,1738979446025,-207.72769697,0.00011095,2]
[352181879,1738979446034,-500.0,0.00011095,2]
[352181880,1738979446043,-503.31847983,0.00011095,2]
[352181881,1738979446052,-502.50574112,0.00011095,2]
[352181882,1738979446061,-500.0,0.00011095,2]
[352181883,1738979446070,-500.0,0.00011095,2]
[352181884,1738979446079,-500.0,0.00011095,2]
[352181885,1738979446088,-500.0,0.00011095,2]
[352181886,1738979446097,-500.0,0.00011095,2]
[352181887,1738979446106,-500.0,0.00011095,2]
[352181888,1738979446116,-500.0,0.00011095,2]
[352181889,1738979446125,-500.0,0.00011095,2]
[352181890,1738979446134,-260.66385936,0.00011095,2]
[352181891,1738979446143,-560.7222449,0.00011095,2]
[352181892,1738979446152,-501.78231166,0.00011095,2]
[352181893,1738979446161,-500.0,0.00011095,2]
[352181894,1738979446170,-500.0,0.00011095,2]
[352181895,1738979446179,-513.56787768,0.00011095,2]
[352181896,1738979446189,-500.0,0.00011095,2]
[352181897,1738979446197,-501.91577813,0.00011095,2]
[352181898,1738979446207,-937.71,0.00011095,2]
[352181899,1738979446216,-504.71221909,0.00011095,2]
[352181900,1738979446225,-500.0,0.00011095,2]
[352181901,1738979446234,-502.31177447,0.00011095,2]
[352181902,1738979446243,-500.0,0.00011095,2]
[352181903,1738979446252,-500.0,0.00011095,2]
[352181904,1738979446261,-500.0,0.00011095,2]
[352181905,1738979446271,-500.0,0.00011095,2]
[352181906,1738979446279,-500.0,0.00011095,2]
[352181907,1738979446289,-500.0,0.00011095,2]
[352181908,1738979446298,-500.0,0.00011095,2]
[352181909,1738979446307,-771.92,0.00011095,2]
[352181910,1738979446317,-500.0,0.00011095,2]
[352181911,1738979446326,-500.0,0.00011095,2]
[352181912,1738979446335,-500.0,0.00011095,2]
[352181913,1738979446344,-500.0,0.00011095,2]
[352181914,1738979446353,-500.0,0.00011095,2]
[352181915,1738979446363,-503.98600084,0.00011095,2]
[352181916,1738979446372,-502.01397189,0.00011095,2]
[352181917,1738979446382,-501.31256184,0.00011095,2]
[352181918,1738979446391,-500.87979671,0.00011095,2]
[352181919,1738979446400,-252.62336189,0.00011095,2]
[352181920,1738979446409,-500.0,0.00011095,2]
[352181921,1738979446419,-2484.5,0.00011095,2]
[352181922,1738979446428,-500.0,0.00011095,2]
[352181923,1738979446439,-500.0,0.00011095,2]
[352181924,1738979446450,-500.96078762,0.00011095,2]
[352181925,1738979446461,-500.0,0.00011095,2]
[352181926,1738979446472,-500.0,0.00011095,2]
[352181927,1738979446481,-500.0,0.00011095,2]
[352181928,1738979446495,-572.57,0.00011095,2]
[352181929,1738979446505,-500.0,0.00011095,2]
[352181930,1738979446515,-500.0,0.00011095,2]
[352181931,1738979446524,-501.51816805,0.00011095,2]
[352181932,1738979446534,-501.45372425,0.00011095,2]
[352181933,1738979446544,-509.49316727,0.00011095,2]
[352181934,1738979446556,-501.42696385,0.00011095,2]
[352181935,1738979446566,-500.0,0.00011095,2]
[352181936,1738979446575,-503.9853436,0.00011095,2]
[352181937,1738979446586,-500.0,0.00011095,2]
[352181938,1738979446595,-10233.27,0.00011095,2]
[352181939,1738979446606,-1134.68,0.00011095,2]
[352181940,1738979446616,-500.0,0.00011095,2]
[352181941,1738979446625,-500.60683009,0.00011095,2]
[352181942,1738979446634,-500.0,0.00011095,2]
[352181943,1738979446644,-300.53013076,0.00011095,2]
[352181944,1738979446654,-500.482637,0.00011095,2]
[352181945,1738979446663,-539.24140804,0.00011095,2]
[352181946,1738979446672,-500.97426727,0.00011095,2]
[352181947,1738979446682,-500.0,0.00011095,2]
[352181948,1738979446691,-500.0,0.00011095,2]
[352181949,1738979446700,-530.41,0.00011095,2]
[352181950,1738979446710,-500.0,0.00011095,2]